bitfinex/quotes_ETHUSD_20250529
["timestamp","ask_amount","ask_price","bid_price","bid_amount"]
[1748528666957,0.04751756,2630.9,2630.1,0.40235237]
[1748528667264,1.5284,2631.2,2630.6,1.91972806]
[1748528667423,1.5284,2631.2,2630.3,1.91972806]
[1748528668467,1.5284,2631.2,2630.7,1.91972806]
[1748528668959,0.35017888,2632.1,2631.1,1.91972806]
[1748528668960,1.502,2632.1,2631.1,1.91972806]
[1748528669163,1.502,2632.1,2631.2,0.02931948]
[1748528669318,1.502,2632.1,2631.1,1.91972806]
[1748528669518,1.502,2632.1,2631.3,3.8003086]
[1748528669962,1.502,2632.1,2631.3,3.80030162]
[1748528670177,1.502,2632.1,2631.3,4.75243329]
[1748528670378,1.502,2632.1,2631.5,1.91972806]
[1748528670678,1.502,2632.1,2631.3,4.75243329]
[1748528670679,1.502,2632.1,2631.3,0.95205273]
[1748528670874,1.502,2632.1,2631.5,0.37323442]
[1748528671036,1.502,2632.1,2631.2,3.52922806]
[1748528671239,1.502,2632.1,2631.3,0.35292281]
[1748528671463,1.502,2632.1,2631.6,5.71960957]
[1748528671769,1.5499,2632.4,2631.6,5.71960957]
[1748528671926,1.5499,2632.4,2632.0,1.91972806]
[1748528672126,1.5591,2632.8,2632.0,5.71902486]
[1748528672394,1.5591,2632.8,2632.1,4.52639489]
[1748528672784,1.5591,2632.8,2631.9,5.35225014]
[1748528673051,1.5591,2632.8,2632.1,3.7992292]
[1748528673267,1.5591,2632.8,2631.8,1.91972806]
[1748528673827,1.5591,2632.8,2631.5,0.37399442]
[1748528673828,0.55,2632.5,2631.5,0.37399442]
[1748528674180,1.5591,2632.1,2630.7,1.5528]
[1748528674343,0.55,2631.6,2630.3,3.47252806]
[1748528674545,1.5591,2631.5,2630.3,5.72156276]
[1748528674745,1.5591,2631.5,2630.3,5.72155667]
[1748528675059,0.55,2631.4,2630.2,1.91972806]
[1748528675226,3.79972263,2631.8,2630.2,1.91972806]
[1748528675227,0.55,2631.2,2630.2,1.91972806]
[1748528675433,1.5591,2631.3,2630.3,5.23494375]
[1748528675778,1.5591,2631.3,2630.3,1.43312037]
[1748528676132,4.561,2632.0,2630.1,0.40235237]
[1748528676133,0.55,2631.0,2630.1,0.40235237]
[1748528676334,0.04752097,2630.9,2630.2,1.5329]
[1748528676654,1.6341,2632.3,2631.1,3.8005943]
[1748528676839,1.6341,2632.3,2630.6,5.72111811]
[1748528676840,1.6341,2632.3,2631.0,1.91972806]
[1748528677269,1.6341,2632.3,2631.1,8.0]
[1748528677576,1.6341,2632.3,2630.7,3.80124566]
[1748528677577,0.55,2631.8,2630.2,7.25454325]
[1748528677733,0.55,2631.6,2630.3,8.0]
[1748528678275,1.6547,2631.5,2630.2,7.25461254]
[1748528678481,1.6547,2631.3,2630.1,0.40235237]
[1748528678700,0.59751138,2631.2,2630.3,1.91972806]
[1748528678899,1.87517,2631.3,2630.3,1.91972806]
[1748528679287,1.87517,2631.3,2630.3,9.91972806]
[1748528679487,1.6547,2631.3,2630.3,9.91972806]
[1748528679803,1.6547,2631.3,2630.5,3.80143592]
[1748528680013,1.6547,2631.3,2630.7,1.91972806]
[1748528680298,1.5341,2631.7,2631.1,1.91972806]
[1748528680983,1.5341,2631.7,2631.1,5.720349]
[1748528681317,1.5955,2632.6,2631.6,3.7999299]
[1748528681458,1.5955,2632.6,2631.7,5.989]
[1748528681657,1.5955,2632.6,2631.5,1.91972806]
[1748528681905,1.5955,2632.6,2631.5,0.38094766]
[1748528682107,1.5955,2632.6,2631.7,1.91972806]
[1748528682661,1.5955,2632.6,2631.7,2.49170477]
[1748528682860,1.5955,2632.6,2631.7,6.29142051]
[1748528683171,1.5955,2632.6,2631.8,8.0]
[1748528683363,1.5955,2632.6,2631.9,3.79944307]
[1748528683565,1.5955,2632.6,2631.8,3.79960679]
[1748528683910,1.5955,2632.6,2631.9,1.42913116]
[1748528684072,1.5955,2632.6,2631.8,3.79961145]
[1748528684273,1.5955,2632.6,2631.8,8.0]
[1748528684475,1.5955,2632.6,2631.7,10.49170477]
[1748528684803,1.5955,2632.6,2631.5,1.79871556]
[1748528685008,1.5955,2632.6,2631.5,1.427]
[1748528685189,1.5955,2632.6,2631.5,9.77872475]
[1748528685388,1.5955,2632.6,2631.5,3.80009076]
[1748528685689,1.5955,2632.6,2631.4,8.0]
[1748528686237,0.55,2632.5,2631.2,3.91641052]
[1748528686383,1.5057,2632.4,2631.2,4.29883858]
[1748528686574,1.5057,2632.4,2631.6,1.91972806]
[1748528687415,1.5057,2632.4,2631.5,5.71976563]
[1748528687606,1.5057,2632.4,2631.4,3.80018364]
[1748528687816,1.5057,2632.4,2631.3,9.427]
[1748528688117,1.5057,2632.4,2631.4,3.80025841]
[1748528688301,1.5057,2632.4,2631.4,2.35053378]
[1748528688508,1.5881,2632.2,2631.1,1.91972806]
[1748528688705,1.5881,2632.2,2631.1,5.72041087]
[1748528689027,1.5881,2632.2,2631.1,1.91972806]
[1748528689516,1.5881,2632.2,2630.8,9.427]
[1748528689517,1.5881,2632.2,2631.5,1.91972806]
[1748528690215,1.5881,2632.2,2631.5,2.26970087]
[1748528690422,1.5881,2632.2,2631.5,0.38357838]
[1748528690591,1.5881,2632.2,2631.4,1.91972806]
[1748528691504,0.55,2631.9,2631.0,9.427]
[1748528691908,1.6294,2631.8,2630.7,9.633]
[1748528692227,1.6261,2631.6,2630.6,3.80136231]
[1748528692450,1.84371,2631.6,2630.6,0.57210904]
[1748528692575,1.84371,2631.6,2630.5,1.91972806]
[1748528692929,1.84371,2631.6,2630.2,6.1639]
[1748528692930,1.6261,2631.6,2630.9,1.91972806]
[1748528693222,1.6261,2631.6,2630.4,1.91972806]
[1748528693418,1.6261,2631.6,2630.8,1.91972806]
[1748528693582,1.6261,2631.6,2630.8,5.72079865]
[1748528693784,1.6261,2631.6,2631.2,1.91972806]
[1748528694625,1.6261,2631.6,2631.2,5.7202599]
[1748528694781,1.6261,2631.6,2631.2,0.9520993]
[1748528695120,1.6261,2631.6,2631.1,1.91972806]
[1748528695414,0.04749849,2632.8,2631.5,1.91972806]
[1748528695415,1.5579,2632.8,2631.5,1.91972806]
[1748528695618,1.5579,2632.7,2631.5,1.91972806]
[1748528695824,0.55,2632.4,2631.5,0.37512436]
[1748528696122,1.5059,2632.1,2630.8,5.72084474]
[1748528696418,0.75559,2632.0,2630.8,7.04746945]
[1748528696584,0.75559,2632.0,2630.9,3.80086038]
[1748528696778,0.75559,2632.0,2631.0,3.80078916]
[1748528697083,0.75559,2632.0,2630.8,7.04756409]
[1748528697084,0.75559,2632.0,2630.9,3.80093352]
[1748528697412,0.75559,2632.0,2630.5,11.80154065]
[1748528697413,0.55,2631.3,2629.7,5.92021416]
[1748528697633,0.55,2631.3,2629.7,1.91972806]
[1748528697634,0.59751952,2631.2,2629.7,1.91972806]
[1748528697835,0.55,2630.9,2629.7,6.47572806]
[1748528698151,1.60352349,2630.8,2629.7,1.91972806]
[1748528698363,1.556,2630.6,2629.7,1.91972806]
[1748528698523,1.556,2630.6,2629.7,5.72229905]
[1748528698724,1.556,2630.6,2630.1,2.32208043]
[1748528699069,1.556,2630.6,2630.1,0.40235237]
[1748528700287,0.55,2630.5,2630.1,0.40235237]
[1748528700423,0.55,2630.3,2630.1,0.02]
[1748528700618,1.5183,2630.4,2629.1,0.02]
[1748528700619,0.55,2630.0,2629.1,0.02]
[1748528700882,0.55,2629.6,2629.1,0.02]
[1748528701349,1.1771,2629.3,2629.1,0.02]
[1748528701676,0.55,2629.2,2629.1,0.02]
[1748528701825,1.1771,2629.3,2629.1,0.02]
[1748528702730,12.00730943,2630.7,2629.1,0.02]
[1748528702731,1.6349,2630.4,2629.1,0.3981396]
[1748528702929,1.6349,2630.4,2629.6,1.91972806]
[1748528703250,1.6349,2630.4,2630.1,1.91972806]
[1748528703822,1.6349,2630.4,2629.9,1.91972806]
[1748528704135,1.6349,2630.4,2629.7,0.19197281]
[1748528704323,1.6349,2630.4,2629.4,8.0]
[1748528704324,0.04752366,2630.3,2629.4,1.91972806]
[1748528704530,1.6349,2630.4,2629.4,8.0]
[1748528704730,1.6349,2630.4,2629.4,9.91972806]
[1748528704926,1.6349,2630.4,2629.8,1.91972806]
[1748528706036,1.6349,2630.4,2629.8,2.29662461]
[1748528706633,1.6349,2630.4,2629.8,0.37689655]
[1748528706844,1.6349,2630.4,2629.5,1.91972806]
[1748528707062,1.6349,2630.4,2629.2,5.979]
[1748528707063,1.6349,2630.4,2629.9,1.91972806]
[1748528707283,1.6349,2630.4,2629.6,5.91454441]
[1748528707609,1.6349,2630.4,2629.6,2.11170087]
[1748528707860,1.6349,2630.4,2629.6,1.91972806]
[1748528708254,0.04752808,2630.3,2629.7,1.91972806]
[1748528708457,1.6349,2630.4,2630.1,1.91972806]
[1748528708668,1.6349,2630.4,2630.2,3.80199224]
[1748528708895,1.5126,2631.2,2630.2,3.012256]
[1748528709077,1.5126,2631.2,2630.0,4.555]
[1748528709078,1.5126,2631.2,2630.7,1.91972806]
[1748528709390,1.5126,2631.2,2630.6,1.91972806]
[1748528709594,0.55,2630.4,2629.6,0.38119522]
[1748528709894,1.607,2630.1,2629.1,0.52]
[1748528710356,3.80171956,2630.4,2629.1,0.89735704]
[1748528710357,1.607,2629.9,2629.1,0.89735704]
[1748528710692,0.55,2629.8,2629.1,0.89735704]
[1748528710897,0.55,2629.6,2629.1,0.89735704]
[1748528711410,1.5731,2629.7,2629.1,0.89735704]
[1748528711569,1.5542,2630.1,2629.4,5.7227819]
[1748528711893,1.594,2631.5,2629.9,3.80242594]
[1748528712095,2.37369952,2631.5,2630.5,5.72124708]
[1748528712256,1.594,2631.5,2630.4,1.91972806]
[1748528712452,1.594,2631.5,2630.8,5.72076886]
[1748528712697,1.594,2631.5,2630.5,8.0]
[1748528712698,1.594,2631.5,2631.2,1.91972806]
[1748528712853,0.51568116,2633.2,2631.2,1.91972806]
[1748528712854,1.594,2631.8,2631.2,1.91972806]
[1748528713381,13.999,2632.9,2631.2,1.91972806]
[1748528713382,0.02,2631.9,2631.6,1.91972806]
[1748528714052,0.02,2631.9,2631.7,1.91972806]
[1748528714855,0.02,2631.9,2631.0,3.80083541]
[1748528714856,0.02,2631.9,2631.0,1.91972806]
[1748528715259,0.02,2631.9,2630.8,5.41836208]
[1748528715462,0.02,2631.9,2630.9,1.91972806]
[1748528715685,1.6203,2631.8,2630.9,1.91972806]
[1748528715886,0.59750277,2631.7,2630.9,1.91972806]
[1748528716071,0.59750277,2631.7,2630.8,0.38380186]
[1748528716072,0.55,2631.7,2630.8,0.38380186]
[1748528716391,0.55,2631.7,2630.6,5.2244124]
[1748528716597,1.6203,2631.8,2630.7,3.80116641]
[1748528716893,1.6203,2631.8,2630.8,0.52241664]
[1748528717187,0.55,2631.7,2630.8,0.37897918]
[1748528717390,1.6203,2631.8,2630.6,1.423]
[1748528717554,1.6203,2631.8,2630.9,1.91972806]
[1748528718580,0.55,2631.7,2630.4,11.76712806]
[1748528718992,0.55,2631.7,2630.8,1.91972806]
[1748528719198,0.76903,2631.7,2630.8,2.30261855]
[1748528719397,0.76903,2631.7,2630.8,0.38289049]
[1748528719563,0.76903,2631.7,2630.5,16.35452521]
[1748528719564,0.76903,2631.7,2630.5,16.35448593]
[1748528719761,0.55,2631.3,2630.3,1.91972806]
[1748528719960,0.55,2630.9,2629.6,1.91972806]
[1748528720264,0.55,2630.8,2629.7,0.34682281]
[1748528720996,0.55,2630.7,2629.7,0.34682281]
[1748528721302,1.5056,2630.8,2630.4,3.8016318]
[1748528721606,1.5056,2630.8,2630.5,1.91972806]
[1748528721963,1.5345,2631.2,2630.5,1.91972806]
[1748528723794,1.5345,2631.2,2630.2,11.49352806]
[1748528723996,1.5345,2631.2,2630.6,1.91972806]
[1748528727701,1.5345,2631.2,2631.0,1.91972806]
[1748528727902,1.6164,2631.6,2631.0,5.72048802]
[1748528728072,1.6164,2631.6,2631.1,3.80067733]
[1748528728271,1.6164,2631.6,2631.0,1.91972806]
[1748528728272,1.5913,2631.9,2631.2,3.80047469]
[1748528728502,1.5913,2631.9,2631.1,3.80061398]
[1748528728800,1.5913,2631.9,2631.2,3.80049778]
[1748528729011,0.02,2631.9,2631.7,3.79970268]
[1748528729317,0.02,2631.9,2631.7,1.5367]
[1748528729482,0.02,2631.9,2631.5,8.0]
[1748528729690,0.02,2631.9,2631.5,0.8]
[1748528729915,0.02,2631.9,2631.5,12.6000834]
[1748528730070,0.02,2631.9,2631.5,4.60008606]
[1748528730274,0.02,2631.9,2631.5,0.8]
[1748528730470,0.02,2631.9,2631.6,3.79985029]
[1748528730669,0.02,2631.9,2631.2,8.00642806]
[1748528730934,0.02,2631.9,2631.4,10.0]
[1748528731075,0.02,2632.9,2631.8,12.63952906]
[1748528731271,0.02,2632.9,2632.4,1.91972806]
[1748528732079,4.14620876,2634.3,2632.8,7.67891224]
[1748528732080,1.5823,2633.9,2632.8,7.67891224]
[1748528732283,1.5823,2633.9,2633.3,1.91972806]
[1748528732597,1.5823,2633.9,2633.3,0.37215874]
[1748528732789,1.5823,2633.9,2632.8,1.91972806]
[1748528733376,0.04746585,2633.8,2632.6,1.5092]
[1748528733584,0.55,2633.8,2632.6,0.37277238]
[1748528733791,0.55,2633.1,2631.8,1.91972806]
[1748528734015,0.21347,2633.0,2632.2,1.91972806]
[1748528734234,1.5847,2633.2,2632.6,1.91972806]
[1748528734523,1.517,2633.8,2632.2,1.6239]
[1748528734722,0.04747558,2633.7,2632.4,1.91972806]
[1748528734874,1.517,2633.8,2632.5,3.79857886]
[1748528735081,1.517,2633.8,2632.4,1.91972806]
[1748528735382,1.56447323,2633.8,2632.8,1.91972806]
[1748528735711,1.517,2633.8,2632.8,1.91972806]
[1748528735913,1.517,2633.8,2632.9,1.5386]
[1748528736829,1.517,2633.8,2633.0,0.31704618]
[1748528737003,1.517,2633.8,2633.0,4.11497876]
[1748528737178,1.7257,2633.8,2633.0,4.11497888]
[1748528737383,1.7257,2633.8,2633.1,3.7977348]
[1748528737583,1.7257,2633.8,2633.2,0.3170221]
[1748528737819,1.7257,2633.8,2633.2,6.03432441]
[1748528737990,1.547,2634.1,2633.6,1.91972806]
[1748528738180,1.547,2634.6,2633.7,8.31696191]
[1748528738381,0.02,2634.9,2633.7,8.31696191]
[1748528738382,0.02,2634.9,2633.8,12.11374538]
[1748528738585,0.02,2634.9,2634.1,10.0]
[1748528738908,0.02,2634.9,2634.5,1.5536]
[1748528739112,0.02,2634.9,2634.1,0.31691378]
[1748528739113,0.02,2634.9,2634.7,3.79538204]
[1748528739317,0.02,2634.9,2634.6,3.48772806]
[1748528739623,0.02,2634.9,2634.1,0.31691378]
[1748528739922,0.02,2634.9,2634.8,3.79535448]
[1748528740321,1.5541,2635.8,2635.3,1.91972806]
[1748528740489,1.5541,2635.8,2634.9,1.6421]
[1748528740836,1.6612,2635.5,2634.3,0.37200162]
[1748528741130,1.638,2635.9,2634.4,0.31687769]
[1748528741131,0.55,2635.0,2634.4,0.31687769]
[1748528741333,0.55,2634.8,2634.4,0.31687769]
[1748528741486,0.55,2635.0,2634.5,1.91972806]
[1748528741688,0.55,2635.0,2634.6,0.31685364]
[1748528742012,1.5962,2635.9,2635.0,10.0]
[1748528742178,1.5962,2635.9,2634.8,8.0]
[1748528742179,0.02,2635.9,2635.7,1.91972806]
[1748528742582,0.02,2635.9,2635.7,2.23644946]
[1748528742788,0.02,2635.9,2635.8,18.31670938]
[1748528742983,0.02,2635.9,2635.8,12.11062394]
[1748528743231,0.02,2635.9,2635.8,8.69462903]
[1748528744128,0.02,2635.9,2635.8,0.69462903]
[1748528744331,0.66666667,2636.8,2635.8,6.45381321]
[1748528744659,0.66666667,2636.8,2636.3,1.5654]
[1748528744931,0.66666667,2636.8,2636.1,8.0]
[1748528745336,0.66666667,2636.8,2636.6,1.91972806]
[1748528745637,1.5637,2637.7,2636.6,1.91972806]
[1748528746102,1.5637,2637.7,2637.0,1.91972806]
[1748528746528,1.5637,2637.7,2636.4,8.0]
[1748528746529,1.5637,2637.7,2636.7,1.91972806]
[1748528746934,0.047403,2637.6,2635.9,1.94899737]
[1748528747088,0.55,2637.5,2636.2,1.91972806]
[1748528747293,0.55,2637.6,2636.4,1.91972806]
[1748528747821,0.55,2637.5,2636.4,1.91972806]
[1748528748020,0.55,2637.3,2636.0,14.88572806]
[1748528748227,0.55,2637.1,2636.0,1.91972806]
[1748528748519,3.83867461,2637.7,2635.9,0.31669737]
[1748528748520,0.55,2636.9,2635.9,0.31669737]
[1748528748717,0.55,2636.7,2635.9,0.31669737]
[1748528748933,0.55,2636.7,2635.8,0.37430377]
[1748528748934,0.5974183,2636.7,2635.8,0.37430377]
[1748528749131,0.55,2636.7,2635.8,8.0]
[1748528749331,0.55,2636.7,2635.8,0.37673037]
[1748528749492,0.55,2636.5,2635.4,1.728]
[1748528749686,0.55,2636.5,2635.6,1.91972806]
[1748528750138,0.55,2636.5,2635.4,1.728]
[1748528750139,0.55,2636.3,2635.4,1.728]
[1748528750353,0.55,2636.3,2635.4,2.10727072]
[1748528750557,0.7709,2636.3,2635.4,2.10727072]
[1748528750913,0.81831948,2636.3,2635.4,2.10727072]
[1748528751112,0.7709,2636.3,2635.4,0.37927072]
[1748528751475,0.7709,2636.3,2635.3,8.0]
[1748528751753,0.55,2636.1,2635.3,0.38433974]
[1748528752066,0.55,2635.9,2635.2,0.78552828]
[1748528752561,0.55,2635.7,2635.2,0.78552828]
[1748528752813,1.6182,2635.8,2635.2,1.16118473]
[1748528753150,1.6182,2635.8,2635.2,9.16118473]
[1748528753868,1.6182,2635.8,2634.3,8.193]
[1748528753869,1.6521,2635.2,2633.5,3.53462806]
[1748528754167,4.34621896,2634.2,2633.1,0.02]
[1748528754466,16.75096395,2634.2,2633.1,0.02]
[1748528754633,16.24246796,2634.2,2633.1,0.02]
[1748528754977,2.2021,2634.2,2633.5,0.38828324]
[1748528755323,0.55,2633.5,2633.1,0.02]
[1748528755521,0.55,2633.3,2633.1,0.02]
[1748528755854,1.7071,2633.2,2633.1,0.02]
[1748528756057,8.08523934,2633.2,2633.1,0.02]
[1748528756272,23.71172264,2633.2,2633.1,0.02]
[1748528756559,3.794375,2633.2,2633.1,0.02]
[1748528756739,2.84605187,2633.2,2633.1,0.02]
[1748528756923,1.75458145,2633.2,2633.1,0.02]
[1748528757122,1.7071,2633.2,2633.1,0.02]
[1748528757979,5.55224294,2633.2,2633.1,0.02]
[1748528758198,1.7071,2633.2,2633.1,0.02]
[1748528758357,1.1571,2633.2,2633.1,0.02]
[1748528759165,1.7071,2633.2,2633.1,0.02]
[1748528759499,1.6147,2633.7,2633.1,0.02]
[1748528760051,1.5324,2634.3,2633.1,8.02]
[1748528760250,1.5324,2634.3,2633.3,8.0]
[1748528760463,1.5324,2634.3,2633.4,1.9229289]
[1748528760865,1.5324,2634.3,2633.1,0.02]
[1748528760866,0.04745743,2634.2,2633.1,0.02]
[1748528761269,0.55,2634.1,2633.1,0.02]
[1748528761465,0.55,2633.9,2633.1,0.02]
[1748528761709,0.04746788,2633.8,2633.1,0.02]
[1748528761879,1.5144,2633.6,2633.1,0.02]
[1748528762332,1.5144,2634.3,2633.2,1.9229289]
[1748528762484,1.5144,2634.3,2633.3,1.85929289]
[1748528762679,1.5144,2634.3,2633.3,1.665]
[1748528762989,1.5144,2634.3,2633.1,0.02]
[1748528762990,0.04745764,2634.2,2633.1,8.02]
[1748528763162,5.31055969,2634.3,2633.1,0.02]
[1748528763363,0.59746648,2634.2,2633.1,0.02]
[1748528763594,0.55,2634.0,2633.1,0.02]
[1748528763823,0.59079498,2634.1,2633.1,0.02]
[1748528764121,4.34621896,2634.2,2633.1,0.02]
[1748528764410,0.55,2633.9,2633.1,0.02]
[1748528764710,0.55,2633.5,2633.1,0.02]
[1748528764943,0.55,2633.7,2633.1,0.02]
[1748528765233,0.55,2633.5,2633.1,0.02]
[1748528766005,5.90776064,2633.2,2633.1,0.02]
[1748528766222,2.1101,2633.2,2633.1,0.02]
[1748528766502,1.5601,2633.7,2633.1,0.02]
[1748528766660,1.99537978,2634.2,2633.1,0.02]
[1748528766863,2.22975726,2634.2,2633.1,0.02]
[1748528767084,0.04746513,2634.1,2633.1,0.02]
[1748528767286,1.79447748,2634.2,2633.1,0.02]
[1748528768196,1.5601,2634.2,2633.2,3.79758069]
[1748528768404,1.6371,2634.6,2633.3,11.7974688]
[1748528768603,1.6371,2634.6,2633.5,8.0]
[1748528769201,1.6371,2634.6,2633.4,4.974]
[1748528769604,1.6371,2634.6,2633.1,0.02]
[1748528769769,8.96371,2634.5,2633.3,3.79750426]
[1748528770167,8.96371,2634.5,2633.4,3.79724623]
[1748528770368,8.96371,2634.5,2633.5,3.79720267]
[1748528770369,8.0,2634.5,2633.5,3.79720267]
[1748528770569,8.0,2634.5,2633.4,1.9229289]
[1748528770879,8.0,2634.5,2633.5,4.953]
[1748528771085,8.0,2634.5,2633.5,8.75015567]
[1748528771403,1.6371,2634.6,2633.5,8.75015567]
[1748528771404,0.55,2634.4,2633.5,4.953]
[1748528771609,1.6371,2634.6,2633.6,4.48459114]
[1748528771808,1.6371,2634.6,2633.6,0.68759289]
[1748528772007,0.55,2634.5,2633.6,0.68759289]
[1748528772372,0.0474545,2634.4,2633.2,1.6547]
[1748528772565,0.0474545,2634.4,2633.3,4.938]
[1748528772770,0.0474545,2634.4,2633.2,6.5897]
[1748528773073,0.55,2634.5,2633.3,11.79751421]
[1748528773308,0.55,2634.5,2633.5,8.0]
[1748528773517,1.5397,2635.0,2634.1,1.9229289]
[1748528773819,1.5397,2635.0,2634.2,8.0]
[1748528774173,0.55,2634.9,2634.2,8.0]
[1748528774573,0.55,2634.9,2633.7,8.0]
[1748528774801,0.55,2634.7,2633.7,8.0]
[1748528775010,0.55,2634.5,2633.7,8.0]
[1748528775508,0.55,2634.5,2633.6,5.29659221]
[1748528775811,0.55,2634.5,2633.7,8.0]
[1748528776112,0.55,2634.5,2633.6,0.37659221]
[1748528776272,1.622,2634.6,2633.2,6.4917]
[1748528776273,0.55,2634.3,2633.2,6.4917]
[1748528776476,0.55,2634.3,2633.3,8.0]
[1748528777101,0.55,2634.3,2633.3,9.92110981]
[1748528777410,1.5738,2635.1,2633.8,13.30242805]
[1748528777714,1.5738,2635.1,2633.8,15.20446535]
[1748528778066,1.5738,2635.1,2633.8,11.4077373]
[1748528778270,1.5738,2635.1,2633.8,3.4077373]
[1748528778630,1.5738,2635.1,2633.9,8.0]
[1748528778808,1.5738,2635.1,2634.0,4.887]
[1748528778974,0.55,2635.0,2634.0,4.887]
[1748528779310,0.55,2634.8,2633.7,8.0]
[1748528780439,0.55,2634.8,2633.7,9.92110981]
[1748528780592,0.04744901,2634.7,2633.8,1.86001566]
[1748528780789,0.55,2634.8,2633.8,1.86001566]
[1748528781277,0.55,2634.8,2633.8,5.6567296]
[1748528781475,0.55,2634.8,2633.8,1.86001566]
[1748528781678,0.55,2634.8,2633.8,5.65673058]
[1748528781907,0.55,2634.8,2633.9,5.73405921]
[1748528782114,0.55,2634.8,2633.9,1.93747368]
[1748528782726,0.55,2634.8,2633.9,5.73410836]
[1748528782877,1.6428,2634.9,2634.2,1.613]
[1748528783079,1.6428,2634.9,2634.2,5.40918224]
[1748528783375,0.43993833,2635.5,2634.2,2.72567454]
[1748528783376,1.5232,2635.3,2634.2,2.72567454]
[1748528783575,0.35379624,2635.2,2634.2,9.613]
[1748528783776,1.5232,2635.3,2634.2,1.613]
[1748528784013,0.35376318,2635.2,2634.2,5.40920537]
[1748528784212,1.5232,2635.3,2634.2,1.613]
[1748528784399,1.5232,2635.3,2634.3,8.0]
[1748528784623,0.59744366,2635.2,2634.0,9.634]
[1748528784791,0.21206437,2635.1,2634.0,10.95192737]
[1748528785197,1.5232,2635.3,2634.0,10.95192737]
[1748528785402,1.5232,2635.3,2634.0,2.95192737]
[1748528785597,1.5232,2635.3,2634.3,3.79593347]
[1748528785793,1.5232,2635.3,2634.4,8.62389003]
[1748528786519,1.5232,2635.3,2634.1,8.0]
[1748528786849,1.5232,2635.3,2634.2,5.91619274]
[1748528786850,0.55,2635.2,2634.2,5.91619274]
[1748528787144,0.55,2635.2,2634.2,9.71232804]
[1748528787281,0.55,2635.2,2634.3,3.79597053]
[1748528787481,0.55,2635.2,2634.2,9.71231885]
[1748528787685,0.55,2635.2,2634.2,5.91619274]
[1748528787882,0.55,2635.2,2634.0,1.634]
[1748528787883,0.55,2635.0,2634.3,4.812]
[1748528788411,0.55,2635.2,2634.3,4.812]
[1748528788882,0.5974374,2635.2,2634.3,4.812]
[1748528789085,0.55,2635.2,2634.3,4.812]
[1748528789516,0.55,2635.2,2634.3,4.799]
[1748528789790,0.55,2634.8,2633.9,4.797]
[1748528790034,0.55,2634.8,2633.9,8.59357574]
[1748528790217,0.55,2634.8,2634.1,8.0]
[1748528790431,1.6031,2634.9,2634.2,1.92110981]
[1748528790593,1.5883,2635.3,2634.4,3.79592885]
[1748528790788,1.5883,2635.3,2634.4,3.79579042]
[1748528790991,0.55,2635.2,2634.4,4.36748044]
[1748528791201,0.55,2635.2,2634.4,0.57169002]
[1748528792310,0.55,2635.2,2634.4,4.52222685]
[1748528792505,1.5883,2635.3,2634.4,12.52230495]
[1748528792847,1.5883,2635.3,2634.4,0.72643494]
[1748528793035,1.5883,2635.3,2634.6,1.92110981]
[1748528793224,1.5883,2635.3,2634.5,1.515]
[1748528793423,1.5883,2635.3,2634.6,4.772]
[1748528793625,1.5883,2635.3,2634.5,1.515]
[1748528793824,1.5883,2635.3,2634.6,4.773]
[1748528794024,1.80213,2635.3,2634.6,4.773]
[1748528794325,1.5883,2635.3,2634.6,4.773]
[1748528794694,1.5883,2635.3,2634.5,9.515]
[1748528794897,0.55,2635.5,2634.5,9.515]
[1748528794898,1.5001,2635.6,2634.8,1.92110981]
[1748528795196,1.5001,2635.6,2634.8,5.71635621]
[1748528795609,1.5693,2635.9,2634.8,9.92110981]
[1748528795834,1.5693,2635.9,2635.2,1.92110981]
[1748528795997,1.5693,2635.9,2635.2,14.68010981]
[1748528796711,1.5693,2635.9,2635.2,15.05960787]
[1748528796917,0.02,2635.9,2635.2,15.05960787]
[1748528797148,0.02,2635.9,2635.8,3.79391456]
[1748528797448,0.02,2635.9,2635.6,1.92110981]
[1748528797607,0.02,2635.9,2635.7,8.19211098]
[1748528797815,0.02,2635.9,2635.7,0.19211098]
[1748528798077,0.02,2635.9,2635.6,9.92110981]
[1748528798078,0.02,2635.9,2635.6,1.92110981]
[1748528798246,0.02,2635.9,2635.3,9.5815]
[1748528798398,0.02,2635.9,2635.5,3.79431824]
[1748528798712,0.02,2635.9,2635.8,11.79391456]
[1748528799041,0.02,2635.9,2635.8,16.74601482]
[1748528799758,0.02,2636.9,2636.3,3.7930938]
[1748528799957,0.02,2636.9,2636.3,6.65710981]
[1748528800159,0.02,2636.9,2636.7,1.92110981]
[1748528800358,0.02,2636.9,2636.4,9.92110981]
[1748528800520,0.02,2636.9,2636.4,11.38682079]
[1748528801054,0.02,2636.9,2636.4,9.46571098]
[1748528801833,0.02,2636.9,2636.4,8.0]
[1748528802414,0.55,2636.7,2636.0,4.72]
[1748528802717,1.6038,2636.8,2636.1,1.92110981]
[1748528802932,1.6038,2636.8,2636.1,9.92110981]
[1748528803135,1.6038,2636.8,2636.2,1.92110981]
[1748528803415,0.55,2636.7,2635.6,10.0]
[1748528803762,0.55,2636.7,2635.5,1.5781]
[1748528803763,0.55,2636.7,2635.9,5.71480176]
[1748528803919,0.55,2636.7,2635.9,1.92110981]
[1748528804121,0.55,2636.7,2635.9,5.71486465]
[1748528804317,0.55,2636.7,2635.9,1.92110981]
[1748528804516,0.789118,2636.7,2635.9,1.92110981]
[1748528804817,0.789118,2636.7,2635.8,4.702]
[1748528805021,0.789118,2636.7,2635.8,3.79378927]
[1748528805231,0.789118,2636.7,2635.9,8.0]
[1748528805754,0.789118,2636.7,2635.9,11.79375898]